bitfinex/quotes_ETHUSD_20260305
["timestamp","ask_amount","ask_price","bid_price","bid_amount"]
[1772735224593,0.001,2066.3,2065.8,4.8175962]
[1772735225531,0.001,2066.3,2065.6,3.60741129]
[1772735225699,3.62408934,2066.3,2065.6,4.81770278]
[1772735226796,4.83399003,2066.3,2065.6,4.81770278]
[1772735227763,3.62308934,2066.2,2065.9,0.0011]
[1772735227926,0.001,2066.1,2065.9,0.0011]
[1772735228518,0.001,2066.3,2065.9,0.0011]
[1772735228722,0.001,2066.3,2065.9,3.60851129]
[1772735229808,3.62408934,2066.3,2065.9,0.0011]
[1772735230524,4.83303997,2066.2,2065.9,0.0011]
[1772735232138,4.83303997,2066.2,2065.6,0.0011]
[1772735232139,3.62308934,2066.1,2065.6,0.0011]
[1772735232350,4.83402228,2066.3,2065.6,0.0011]
[1772735232638,2.80800218,2066.2,2065.6,0.0011]
[1772735233014,3.62308934,2066.1,2065.6,0.0011]
[1772735234510,3.62308934,2065.9,2065.6,0.0011]
[1772735234841,3.62308934,2065.9,2065.0,0.0011]
[1772735235042,6.08478332,2066.0,2064.8,0.0011]
[1772735235043,3.62308934,2065.7,2064.8,0.0011]
[1772735235277,3.62308934,2065.5,2064.9,0.0022]
[1772735236718,1.21041928,2065.4,2064.9,0.0022]
[1772735237134,3.62308934,2065.3,2064.9,0.0022]
[1772735238234,1.21039714,2065.5,2064.9,0.0022]
[1772735238452,6.44248648,2065.5,2064.9,0.0022]
[1772735239117,4.83348648,2065.5,2064.9,0.0022]
[1772735239514,1.21039714,2065.5,2064.9,0.0022]
[1772735239717,3.62308934,2065.4,2064.9,0.0022]
[1772735240638,1.21039553,2065.5,2065.1,0.0011]
[1772735241344,8.46442992,2065.6,2065.1,0.0033]
[1772735241547,4.83324715,2065.9,2065.1,3.61071129]
[1772735242050,3.62308934,2065.8,2065.1,3.60851129]
[1772735242236,3.62308934,2065.8,2065.2,0.0022]
[1772735243230,3.62408934,2066.1,2065.2,3.60961129]
[1772735243421,4.83411654,2066.1,2065.4,3.60741129]
[1772735243857,1.21101478,2066.1,2065.5,0.0022]
[1772735244031,1.21101478,2066.1,2065.5,3.60961129]
[1772735244227,1.21103572,2066.1,2065.5,3.60961129]
[1772735244457,1.21101839,2066.1,2065.5,3.60961129]
[1772735244657,0.001,2066.1,2065.5,3.60961129]
[1772735244859,1.2110174,2066.1,2065.5,3.60961129]
[1772735245151,0.001,2066.1,2065.5,3.60961129]
[1772735245362,0.001,2066.1,2065.6,1.21030209]
[1772735245861,3.62408934,2066.1,2065.7,0.0022]
[1772735246050,0.001,2066.1,2065.5,3.60741129]
[1772735246360,0.001,2066.1,2065.5,3.60961129]
[1772735247526,0.001,2066.1,2065.6,1.21030209]
[1772735248148,0.001,2066.3,2065.7,3.85042605]
[1772735249629,0.001,2066.3,2065.9,3.84922605]
[1772735250071,0.001,2066.3,2066.0,0.0012]
[1772735253160,0.001,2066.1,2066.0,0.0012]
[1772735253339,0.001,2066.3,2066.0,3.56398268]
[1772735253662,0.001,2066.3,2066.1,1.21000919]
[1772735253881,0.001,2066.5,2066.1,4.77279187]
[1772735254061,93.64957024,2066.8,2066.2,3.56278268]
[1772735254062,91.20960685,2066.8,2066.2,3.56278268]
[1772735254462,3.64957024,2066.7,2065.9,1.21010958]
[1772735254775,3.64957024,2066.7,2065.9,4.77289226]
[1772735255774,1.20971644,2066.6,2066.1,1.21000919]
[1772735255944,1.20971644,2066.6,2066.0,8.40283639]
[1772735255945,1.20971644,2066.6,2066.0,4.77280539]
[1772735256272,1.20971644,2066.6,2065.9,1.21012633]
[1772735256273,4.85928668,2066.6,2065.9,1.21012633]
[1772735257475,4.85928668,2066.6,2065.9,4.77290901]
[1772735258076,3.64957024,2066.5,2065.9,1.21012633]
[1772735258580,3.64957024,2066.5,2065.9,4.77290901]
[1772735260164,4.85937329,2066.5,2065.9,4.77290901]
[1772735260875,1.20980305,2066.5,2065.9,4.77290901]
[1772735261083,1.20975369,2066.6,2066.0,3.56278268]
[1772735262094,1.20969895,2066.7,2066.0,3.56278268]
[1772735262389,4.85926919,2066.7,2066.1,1.21000919]
[1772735264690,90.0,2066.8,2066.3,3.56278268]
[1772735265059,0.001,2066.6,2066.3,3.56278268]
[1772735266716,0.001,2066.6,2066.4,4.7726162]
[1772735267588,0.001,2066.6,2066.4,1.20983352]
[1772735268695,0.001,2066.6,2066.3,4.83946876]
[1772735269410,0.001,2066.6,2066.2,2.23000633]
[1772735269578,0.001,2066.6,2066.2,3.2006155]
[1772735269901,0.20326966,2066.5,2066.3,0.97060917]
[1772735270700,0.20326966,2066.5,2066.3,2.18049716]
[1772735271302,0.20326966,2066.5,2066.2,2.23003969]
[1772735271862,0.20326966,2066.5,2066.2,3.27132374]
[1772735272835,0.20326966,2066.5,2066.2,2.2300502]
[1772735274702,0.20326966,2066.5,2066.2,3.23924882]
[1772735275280,0.20326966,2066.5,2066.2,2.02929862]
[1772735275612,0.20326966,2066.5,2066.2,3.23924122]
[1772735277393,0.20326966,2066.5,2066.4,0.0011]
[1772735278286,4.38063971,2066.4,2066.1,1.0291]
[1772735279409,4.38063971,2066.4,2066.1,2.23910637]
[1772735280013,4.38063971,2066.4,2066.1,1.0291]
[1772735280219,4.38063971,2066.4,2066.1,2.2391034]
[1772735280380,0.001,2066.6,2066.3,0.94801647]
[1772735281412,69.6944853,2066.8,2066.5,0.73391739]
[1772735281631,67.17665447,2066.8,2066.6,1.76491739]
[1772735281810,66.78195559,2066.8,2066.6,1.031]
[1772735283195,1e-08,2066.8,2066.6,1.031]
[1772735283516,1e-08,2066.8,2066.6,4.25641153]
[1772735283906,1e-08,2066.8,2066.6,3.04673341]
[1772735285004,1e-08,2066.8,2066.7,3.96387697]
[1772735285410,1e-08,2066.8,2066.6,1.031]
[1772735285634,1e-08,2066.8,2066.6,6.18569358]
[1772735285936,1e-08,2066.8,2066.6,4.97598171]
[1772735286233,1e-08,2066.8,2066.6,6.18567784]
[1772735286428,1e-08,2066.8,2066.6,4.97598171]
[1772735286835,1e-08,2066.8,2066.6,6.18569456]
[1772735286998,1e-08,2066.8,2066.7,3.92608241]
[1772735287198,0.32499718,2067.3,2066.8,3.92608241]
[1772735287398,1.53431136,2067.3,2066.6,6.14689521]
[1772735287624,4.76930469,2067.2,2066.6,6.14689521]
[1772735288002,4.76930469,2067.2,2066.6,1.031]
[1772735288829,4.76930469,2067.2,2066.6,6.18679622]
[1772735289027,4.76930469,2067.2,2066.7,3.94609545]
[1772735289223,4.76930469,2067.2,2066.6,1.031]
[1772735289526,5.97872833,2067.2,2066.6,1.031]
[1772735289726,0.32499718,2067.3,2066.7,3.92710118]
[1772735290115,0.32499718,2067.3,2066.8,0.0011]
[1772735290422,0.001,2067.0,2066.8,0.0011]
[1772735290645,0.001,2067.0,2066.8,3.90922722]
[1772735291621,0.001,2067.0,2066.8,5.11876913]
[1772735292022,0.001,2067.0,2066.9,3.8891727]
[1772735292230,0.32499718,2067.3,2066.9,3.8891727]
[1772735292429,0.32499718,2067.3,2067.0,1.039]
[1772735293224,6.30362888,2067.3,2067.0,1.039]
[1772735293412,4.76930469,2067.2,2067.0,1.039]
[1772735293618,0.32499718,2067.3,2067.0,1.039]
[1772735295633,4.77030469,2067.9,2067.3,3.81355245]
[1772735295930,4.77030469,2067.9,2067.4,1.042]
[1772735296134,0.001,2067.9,2067.5,3.81355245]
[1772735297904,0.001,2067.9,2067.6,3.78540374]
[1772735298100,0.001,2067.9,2067.5,1.20914946]
[1772735298431,4.77030469,2067.9,2067.5,1.043]
[1772735299827,0.001,2067.9,2067.5,1.043]
[1772735300501,0.001,2067.9,2067.5,2.25218963]
[1772735300702,0.001,2067.9,2067.5,1.043]
[1772735301129,4.77030469,2067.9,2067.5,1.043]
[1772735301807,4.76930469,2067.7,2067.5,1.043]
[1772735302399,4.77030469,2067.9,2067.5,1.043]
[1772735302868,4.77030469,2067.9,2067.5,2.25217969]
[1772735303228,0.001,2067.9,2067.5,2.25217969]
[1772735303732,0.001,2067.9,2067.5,1.043]
[1772735303930,0.001,2067.9,2067.5,1.0441]
[1772735304122,0.001,2067.7,2067.5,1.0441]
[1772735304631,0.001,2067.7,2067.5,2.25328621]
[1772735305428,0.001,2067.7,2067.5,5.88861629]
[1772735305748,4.77030469,2068.4,2067.7,4.84340296]
[1772735306036,0.001,2068.3,2067.7,4.84340296]
[1772735306714,4.77030469,2068.3,2067.7,1.20907288]
[1772735306914,4.77030469,2068.2,2067.5,2.25327674]
[1772735307229,4.77030469,2068.2,2067.5,1.0441]
[1772735307632,1.2096712,2068.4,2067.5,1.0441]
[1772735307633,5.95404265,2068.0,2067.5,1.0441]
[1772735307839,1.20895594,2067.9,2067.5,1.0441]
[1772735308131,5.95404265,2067.8,2067.3,0.0011]
[1772735308738,0.001,2067.7,2067.3,1.21040662]
[1772735308924,0.001,2067.7,2067.3,4.79200366]
[1772735309444,0.001,2067.7,2067.4,1.05]
[1772735310141,0.001,2067.7,2067.4,2.25919389]
[1772735310549,6.12532814,2067.6,2067.4,1.05]
[1772735310833,6.12432814,2067.6,2067.3,0.0011]
[1772735311015,6.12532814,2067.5,2067.3,0.0011]
[1772735311219,6.12432814,2067.5,2067.3,0.0011]
[1772735312119,0.001,2067.4,2067.3,0.0011]
[1772735312436,6.12432814,2067.4,2066.9,1.20953804]
[1772735312641,6.12432814,2067.4,2066.8,0.0011]
[1772735312808,6.12432814,2067.4,2066.5,0.0011]
[1772735313850,6.12432814,2067.4,2066.5,1.21087312]
[1772735314035,6.12432814,2067.2,2066.5,2.26287312]
[1772735314912,6.12432814,2067.2,2066.5,1.0531]
[1772735315107,6.12432814,2067.2,2066.5,2.26287051]
[1772735315326,6.12432814,2067.2,2066.5,5.73614548]
[1772735316822,7.33369773,2067.2,2066.5,5.73614548]
[1772735317238,6.12432814,2067.2,2066.6,3.4362778]
[1772735317437,6.12432814,2067.2,2066.5,1.0531]
[1772735317438,7.33369474,2067.2,2066.5,1.0531]
[1772735317873,7.33369474,2067.2,2066.7,0.0011]
[1772735318214,6.12432814,2066.9,2066.7,0.0011]
[1772735319340,7.33392752,2066.8,2066.7,0.0011]
[1772735320631,6.12432814,2066.8,2066.7,0.0011]
[1772735321034,0.001,2067.0,2066.7,0.0011]
[1772735322230,6.12532814,2067.0,2066.7,0.0011]
[1772735323637,7.33482541,2067.0,2066.7,0.0011]
[1772735325026,0.001,2067.0,2066.7,0.0011]
[1772735325654,0.001,2067.0,2066.7,1.2107579]
[1772735325850,0.001,2067.0,2066.7,0.0011]
[1772735328236,6.12532814,2067.0,2066.7,0.0011]
[1772735328556,6.12532814,2067.0,2066.3,4.32555171]
[1772735328557,6.12532814,2067.0,2066.3,2.26795866]
[1772735330037,6.12532814,2067.0,2066.5,0.0011]
[1772735331060,7.33386899,2066.9,2066.5,0.0011]
[1772735331837,7.33386899,2066.9,2066.2,0.0011]
[1772735338176,7.33386899,2066.9,2066.1,0.0011]
[1772735341975,7.33386899,2066.9,2066.3,0.0011]
[1772735342181,5.83399478,2066.7,2066.3,0.0011]
[1772735342494,0.001,2066.8,2066.3,0.0011]
[1772735342495,5.83499478,2066.8,2066.3,0.0011]
[1772735344291,1.2096579,2066.7,2066.3,0.0011]
[1772735345296,1.21060446,2066.8,2066.3,4.03594464]
[1772735345960,0.001,2066.8,2066.3,4.03594464]
[1772735346391,0.001,2066.8,2066.4,1.20983352]
[1772735346686,0.001,2066.8,2066.4,5.21039626]
[1772735348586,0.001,2066.8,2066.5,3.96635345]
[1772735350419,5.83499478,2066.8,2066.3,0.0011]
[1772735350575,7.04365268,2066.7,2066.3,0.0011]
[1772735354090,7.04365268,2066.7,2066.4,0.0011]
[1772735354270,0.001,2066.6,2066.4,0.0011]
[1772735354475,5.83499478,2066.6,2066.4,0.0011]
[1772735355002,5.83499478,2066.6,2066.0,0.0011]
[1772735355003,7.04376976,2066.5,2066.0,0.0011]
[1772735356785,5.83399478,2066.5,2066.0,1.21114692]
[1772735356996,1.20983352,2066.4,2066.0,0.0011]
[1772735357195,7.0438283,2066.4,2066.0,0.0011]
[1772735358973,7.0438283,2066.4,2065.8,0.0011]
[1772735359169,7.0438283,2066.4,2065.4,6.06923918]
[1772735359582,5.83399478,2066.3,2065.4,6.06923918]
[1772735360283,5.83399478,2066.3,2065.4,4.85883851]
[1772735360481,5.83399478,2066.3,2065.4,6.06925674]
[1772735360684,5.83399478,2066.3,2065.5,3.76445203]
[1772735361004,7.04394541,2066.2,2065.6,1.21030209]
[1772735361190,7.04394541,2066.2,2065.4,2.27241524]
[1772735361784,7.04394541,2066.2,2065.4,6.02011643]
[1772735362991,7.04394541,2066.2,2065.5,3.73095368]
[1772735362992,7.04398745,2066.2,2065.5,3.73095368]
[1772735363379,5.83399478,2066.2,2065.5,3.73095368]
[1772735363778,8.84085623,2066.4,2065.5,3.73095368]
[1772735363978,5.83399478,2066.4,2065.5,3.73095368]
[1772735364210,5.83499478,2066.6,2065.5,3.73095368]
[1772735364504,0.001,2066.6,2065.6,3.7142228]
[1772735364706,0.001,2066.6,2065.7,3.6975248]
[1772735364894,0.001,2066.6,2065.8,3.6975248]
[1772735365077,0.001,2066.6,2066.0,3.6975248]
[1772735366214,0.001,2066.2,2066.0,3.6975248]
[1772735366509,0.001,2066.6,2066.0,3.68087493]
[1772735367308,0.001,2066.6,2066.1,1.21000919]
[1772735367606,0.001,2066.6,2066.2,3.66425379]
[1772735369613,0.001,2066.6,2066.2,1.20989251]
[1772735370408,0.001,2066.6,2066.3,1.066]
[1772735371312,0.001,2066.6,2066.3,4.66779684]
[1772735371726,0.001,2066.6,2066.4,1.20983352]
[1772735373329,4.83896195,2067.0,2066.4,1.20983352]
[1772735373330,0.001,2067.0,2066.4,1.20983352]
[1772735373528,0.001,2067.0,2066.5,5.22944953]
[1772735374027,0.001,2067.0,2066.6,6.43916597]
[1772735374725,0.001,2067.0,2066.7,1.068]
[1772735376132,0.001,2067.0,2066.7,2.27760905]
[1772735376423,0.001,2067.0,2066.7,7.50705858]
[1772735377934,0.001,2067.0,2066.8,0.0011]
[1772735380129,0.001,2067.0,2066.8,5.23054953]
[1772735380551,0.001,2067.0,2066.8,6.4401452]
[1772735380842,0.001,2067.0,2066.8,1.21069567]
[1772735381028,0.001,2067.0,2066.8,0.0011]
[1772735381422,5.59155806,2067.0,2066.5,1.21087327]
[1772735381646,5.59155806,2067.0,2066.5,0.0011]
[1772735382529,5.59055806,2066.8,2066.5,0.0011]
[1772735385218,6.80021596,2066.7,2066.5,0.0011]
[1772735385451,6.80021596,2066.7,2066.0,5.22944953]
[1772735385658,6.80021596,2066.7,2066.0,1.21006258]
[1772735385863,6.80021596,2066.7,2065.9,1.21008329]
[1772735386074,6.80021596,2066.7,2065.6,5.23054953]
[1772735386241,6.80021596,2066.7,2065.7,6.43969303]
[1772735386659,6.80021596,2066.7,2065.8,1.077]
[1772735387166,6.80021596,2066.7,2065.8,6.30644953]
[1772735387333,6.80021596,2066.7,2065.9,6.43957586]
[1772735390365,6.80021596,2066.7,2065.8,5.22944953]
[1772735390566,6.80021596,2066.7,2065.9,6.30844953]
[1772735391241,6.80021596,2066.7,2065.9,6.30954953]
[1772735392240,6.80021596,2066.7,2066.0,1.21006776]
[1772735394368,6.80021596,2066.7,2065.9,7.51963371]
[1772735397171,6.80021596,2066.7,2065.9,7.51966818]
[1772735399180,6.80021596,2066.7,2066.0,5.22944953]
[1772735400077,6.80021596,2066.7,2065.9,2.29021865]
[1772735400279,5.31232535,2066.6,2065.6,0.0011]
[1772735400600,5.31232535,2066.4,2065.6,0.0011]
[1772735400759,5.31232535,2066.4,2065.6,5.36840277]
[1772735401590,5.31232535,2066.4,2065.8,5.36730277]
[1772735402890,5.31232535,2066.4,2065.9,1.21012633]
[1772735403091,5.31232535,2066.7,2065.9,6.5774291]
[1772735403298,0.001,2066.8,2065.9,6.5774291]
[1772735403461,0.001,2066.8,2066.2,5.36730277]
[1772735403663,7.14454032,2067.8,2066.2,5.36730277]
[1772735403664,5.31232535,2067.8,2066.7,5.36730277]
[1772735403867,5.31232535,2067.8,2066.8,6.45330277]
[1772735404276,5.31232535,2067.7,2066.8,6.45330277]
[1772735404886,6.52145671,2067.6,2066.8,6.45330277]
[1772735405079,6.52145671,2067.6,2066.8,7.66287673]
[1772735405279,5.31232535,2067.6,2066.8,7.66287673]
[1772735405667,5.31232535,2067.6,2066.4,6.57713629]
[1772735405899,5.31232535,2067.6,2066.6,1.086]
[1772735406264,5.31232535,2067.6,2066.6,6.45330277]
[1772735406888,6.52148017,2067.6,2066.7,1.2096579]
[1772735407170,6.52148017,2067.6,2066.8,5.36730277]
[1772735407171,6.52146324,2067.6,2066.8,5.36730277]
[1772735407499,6.52146324,2067.6,2066.6,1.086]
[1772735408821,6.52146324,2067.6,2066.6,8.09545171]
[1772735408984,6.52146324,2067.6,2066.6,7.66301636]
[1772735409186,6.52146324,2067.6,2066.7,5.36730277]
[1772735410222,6.52146324,2067.6,2066.6,2.29571012]
[1772735411013,6.52146324,2067.6,2066.6,2.29570976]
[1772735411618,5.31232535,2067.5,2066.6,2.29571322]
[1772735412420,5.31232535,2067.5,2066.6,1.086]
[1772735412724,5.31232535,2067.5,2066.6,7.66301218]
[1772735412903,5.31232535,2067.5,2066.7,5.36730277]
[1772735413087,6.52157178,2067.5,2066.8,1.20959938]
[1772735413722,6.52157178,2067.5,2066.7,6.57693286]
[1772735415412,6.52157178,2067.5,2066.8,0.0011]
[1772735415647,6.52257178,2067.5,2066.8,0.0011]
[1772735419773,6.52257178,2067.5,2066.4,4.83931471]
[1772735419774,5.31232535,2067.2,2066.3,0.0011]
[1772735419936,5.31232535,2067.0,2066.3,0.0011]
[1772735420867,5.31232535,2066.8,2066.3,0.0011]
[1772735421848,5.31232535,2066.6,2066.3,0.0011]
[1772735423166,5.31232535,2067.2,2066.3,5.36840277]
[1772735423486,6.52255975,2067.5,2066.4,5.36730277]
[1772735423680,6.52255975,2067.5,2066.5,6.57707775]
[1772735424187,5.31332535,2067.5,2066.5,6.57707775]
[1772735424388,6.52252131,2067.5,2066.5,6.57707775]
[1772735424590,0.001,2067.5,2066.5,6.57707775]
[1772735425364,1.21019406,2067.5,2066.5,6.57707775]
[1772735425690,0.001,2067.5,2066.5,6.57707775]
[1772735427167,0.001,2067.5,2066.6,5.36730277]
[1772735427798,5.31232535,2068.0,2066.7,5.21693755]
[1772735428117,0.001,2067.3,2066.9,5.21693755]
[1772735428316,11.1951602,2068.2,2066.8,1.09]
[1772735428317,5.10363433,2068.2,2067.0,5.21693755]
[1772735428527,0.001,2068.4,2067.1,8.68957806]
[1772735428808,1.20966544,2068.4,2067.2,5.21693755]
[1772735429126,1.20966377,2068.4,2067.4,5.21693755]
[1772735429582,0.001,2068.4,2067.4,4.83675937]
[1772735429772,0.001,2068.4,2067.5,6.42612739]
[1772735431017,0.00099999,2068.6,2068.1,4.95775318]
[1772735431719,0.00099999,2068.6,2068.2,6.16653376]
[1772735431884,0.00099999,2068.6,2068.3,4.95775318]
[1772735432285,0.001,2068.9,2068.3,4.95775318]
[1772735433718,0.001,2068.9,2068.4,2.2996637]
[1772735433918,0.001,2068.9,2068.4,7.25741688]
[1772735434221,0.001,2068.9,2068.5,4.95775318]
[1772735435012,5.1923313,2069.6,2068.5,4.95775318]
[1772735435725,5.1923313,2069.6,2068.9,4.95775318]
[1772735436022,6.40005086,2070.1,2068.9,6.04975318]
[1772735436391,6.40001524,2070.1,2068.9,6.04975318]
[1772735436794,5.1923313,2070.1,2068.9,6.04975318]
[1772735437028,2.16336628,2070.6,2069.3,4.95775318]
[1772735437029,0.36636628,2070.6,2069.3,4.95775318]
[1772735437235,0.36636628,2070.6,2069.5,4.95775318]
[1772735437236,1.20739463,2070.6,2069.5,4.95775318]
[1772735437525,1.20723584,2070.9,2069.5,4.95775318]
[1772735437831,6.39934037,2071.3,2070.1,5.97099853]
[1772735438128,6.39931425,2071.3,2070.3,4.95775318]
[1772735438333,6.39931425,2071.3,2070.1,1.01324535]
[1772735438533,6.39931425,2071.3,2070.2,1.092]
[1772735439034,4.82788586,2071.4,2070.2,1.092]
[1772735439035,1.20694656,2071.4,2070.2,6.04975318]
[1772735439245,5.1923313,2071.9,2070.4,4.95775318]
[1772735439445,6.39898769,2071.9,2070.4,4.95775318]
[1772735439741,5.1923313,2071.6,2070.4,6.16520851]
[1772735439939,0.001,2071.1,2070.4,6.16520851]
[1772735440406,6.39906972,2071.7,2070.5,4.95775318]
[1772735440613,6.39906972,2071.7,2070.6,5.19343799]
[1772735440816,6.39906972,2071.7,2070.7,0.23567343]
[1772735441959,6.39906972,2071.7,2070.7,1.44294954]
[1772735442447,6.39906972,2071.7,2070.7,0.23567343]
[1772735442917,6.39906972,2071.7,2070.7,1.44299064]
[1772735443118,1.20673842,2071.7,2070.8,5.19341523]
[1772735443543,6.39906972,2071.7,2070.8,0.23566205]
[1772735444935,6.39906972,2071.7,2070.4,1.093]
[1772735444936,5.1923313,2071.6,2070.4,2.30049072]
[1772735445137,5.1923313,2071.6,2070.4,2.51442336]
[1772735445323,5.1923313,2071.6,2070.4,0.21393264]
[1772735445529,3.78036865,2071.7,2070.4,0.21393264]
[1772735445530,5.1923313,2071.3,2070.4,0.21393264]
[1772735445738,5.1923313,2071.1,2070.4,0.21393264]
[1772735446169,5.1923313,2070.9,2070.4,1e-08]
[1772735446461,5.1923313,2070.9,2069.8,1.40180639]
[1772735447033,5.1923313,2070.9,2069.8,0.19396884]
[1772735448270,5.1923313,2070.7,2069.8,1.40177241]
[1772735448567,5.1923313,2070.7,2069.8,0.19396884]
[1772735448738,5.1923313,2070.7,2069.8,1.40181034]
[1772735449743,5.1923313,2070.7,2069.8,0.19396884]
[1772735450262,5.1923313,2070.5,2069.8,0.19396884]
[1772735451141,5.1923313,2070.5,2069.8,1.40181383]
[1772735452357,6.39982743,2070.4,2069.8,0.19396884]
[1772735452541,6.39982743,2070.4,2070.0,0.0011]
[1772735452938,6.39982743,2070.4,2069.8,0.19396884]
[1772735453162,6.39982743,2070.4,2069.8,0.19506884]
[1772735453365,6.39982743,2070.4,2069.8,1.40291424]
[1772735453578,6.39982743,2070.4,2069.8,1.40291225]
[1772735453884,6.39982743,2070.4,2069.8,0.19506884]
[1772735455059,6.39982743,2070.4,2069.8,1e-08]
[1772735456465,5.1923313,2070.0,2069.5,0.0011]
[1772735456783,1.20767112,2070.1,2069.5,0.0011]
[1772735456784,5.1923313,2069.8,2069.5,0.0011]
[1772735457016,5.1923313,2069.6,2069.2,0.16744746]
[1772735457161,5.1923313,2069.6,2068.7,0.0011]
[1772735458386,5.1923313,2069.6,2068.5,0.0011]
[1772735458590,5.1923313,2069.4,2068.5,0.0011]
[1772735459486,5.1923313,2069.1,2068.5,0.0011]
[1772735459675,5.1923313,2068.9,2068.5,0.0011]
[1772735460500,2.57363023,2069.4,2068.5,0.0011]
[1772735460501,6.00127915,2069.1,2068.5,0.0011]
[1772735460661,4.79302436,2069.0,2068.5,0.0011]
[1772735462598,6.00139595,2068.9,2068.5,0.0011]
[1772735462791,4.79302436,2068.8,2068.5,0.0011]
[1772735463189,4.79302436,2069.1,2068.5,0.0011]
[1772735464911,4.79302436,2068.9,2068.5,0.0011]
[1772735465491,4.79302436,2068.9,2068.7,0.0011]
[1772735466007,4.79302436,2068.9,2068.5,0.0011]
[1772735466213,4.79302436,2068.9,2068.2,0.0011]
[1772735466214,4.79302436,2068.7,2068.2,0.0011]
[1772735466398,2.57363023,2068.6,2067.4,1.20921772]
[1772735466582,4.79302436,2068.5,2067.3,5.19449427]
[1772735466780,4.79302436,2068.5,2067.2,1.20933047]
[1772735467012,4.79302436,2068.3,2067.1,4.83759256]
[1772735467216,6.59002436,2068.2,2067.1,10.03208683]
[1772735467389,4.79302436,2068.1,2067.1,5.19449427]
[1772735468703,4.79302436,2068.1,2067.2,5.19449427]
[1772735468916,1.20889748,2068.0,2067.3,1.20930682]
[1772735469115,4.79302436,2068.7,2067.3,6.40380109]
[1772735469318,4.79302436,2068.6,2067.5,5.19449427]
[1772735469705,4.79302436,2068.6,2067.3,1.20930682]
[1772735469943,4.79302436,2068.6,2067.3,6.40380109]
[1772735470238,4.79302436,2068.2,2067.0,6.40393363]
[1772735470610,4.79302436,2068.5,2067.0,6.40393363]
[1772735470823,1.798,2068.3,2067.0,6.40393363]
[1772735471038,3.00675428,2068.3,2067.0,6.40393363]
[1772735471217,1.20875428,2068.3,2067.0,6.40393363]
[1772735471727,4.79302436,2068.2,2067.0,6.40393363]
[1772735472437,1.20875428,2068.3,2067.0,6.40393363]
[1772735473007,4.79302436,2068.2,2067.0,6.40393363]
[1772735475339,4.79302436,2068.0,2067.0,6.40393363]
[1772735476235,4.79302436,2068.0,2067.0,1.20943936]
[1772735476747,4.79302436,2068.0,2067.0,6.40393363]
[1772735477204,6.0019803,2067.9,2067.0,6.40393363]
[1772735477816,6.0019803,2067.9,2067.2,0.0011]
[1772735478640,4.79302436,2067.8,2067.2,0.0011]
[1772735479435,1.20907288,2067.7,2067.2,0.0011]
[1772735480007,6.00209724,2067.7,2067.2,0.0011]
[1772735480924,4.79302436,2067.6,2067.2,0.0011]
[1772735481744,1.20918984,2067.5,2067.2,0.0011]
[1772735482044,1.20913769,2067.6,2067.2,0.0011]
[1772735482642,4.79302436,2067.7,2067.2,0.0011]
[1772735482845,4.79302436,2067.6,2067.0,0.0011]
[1772735483629,4.79302436,2067.4,2067.0,0.0011]
[1772735485543,1.20918984,2067.5,2067.0,0.0011]
[1772735485544,6.00244819,2067.1,2067.0,0.0011]
[1772735485737,6.00244819,2067.1,2066.7,0.0011]
[1772735485933,4.79302436,2067.1,2066.7,0.0011]
[1772735486134,12.36213701,2067.7,2066.7,5.19559427]
[1772735486362,6.00210138,2067.7,2066.7,5.19559427]
[1772735487070,4.79302436,2067.6,2066.7,5.19559427]
[1772735487465,4.79302436,2067.7,2066.7,5.19559427]
[1772735487628,4.69817798,2067.6,2066.8,6.11346843]
[1772735488862,4.83560759,2068.0,2066.8,6.11346843]
[1772735488863,9.3678191,2068.2,2066.8,6.11346843]
[1772735489034,14.06599708,2068.2,2066.8,6.11346843]
[1772735489235,14.06599708,2068.2,2066.9,4.90386905]
[1772735489236,4.69817798,2068.2,2066.9,4.90386905]
[1772735489457,3.00770996,2068.4,2066.9,4.90386905]
[1772735489771,7.70588794,2068.4,2066.9,4.90386905]
[1772735489946,4.69817798,2068.3,2067.1,4.90386905]
[1772735491462,0.001,2068.0,2067.1,4.90386905]
[1772735492188,0.001,2068.0,2067.3,4.88630929]
[1772735493972,0.001,2068.0,2067.5,4.88630929]
[1772735495463,0.001,2068.0,2067.4,1.20924833]
[1772735495867,7.12157862,2068.6,2067.4,6.09555762]
[1772735496078,6.0218359,2068.6,2067.4,6.09555762]
[1772735497390,4.81327567,2068.5,2067.4,6.09555762]
[1772735497812,4.81327567,2068.4,2067.4,1.20924833]
[1772735497982,4.81327567,2068.4,2067.1,6.09568669]
[1772735497983,4.81327567,2068.0,2067.1,6.09568669]
[1772735498912,4.81327567,2068.0,2067.1,1.20940715]
[1772735499085,4.81327567,2067.8,2066.9,1.21060183]
[1772735499694,4.81327567,2067.8,2066.9,0.0011]
[1772735500306,4.81327567,2067.6,2066.9,0.0011]
[1772735501208,4.81327567,2067.4,2066.9,0.0011]
[1772735502294,1.20930682,2067.3,2066.9,0.0011]
[1772735502481,6.02256948,2067.4,2066.9,0.0011]
[1772735503112,4.81327567,2067.3,2066.9,0.0011]
[1772735503332,4.81327567,2067.6,2066.9,0.0011]
[1772735503613,4.81327567,2067.6,2067.1,0.0011]
[1772735503784,4.81327567,2067.6,2066.9,4.88740929]
[1772735503785,4.81327567,2067.6,2066.9,0.0011]
[1772735504309,6.02246551,2067.5,2066.9,0.0011]
[1772735505285,1.21002217,2067.8,2067.0,4.88630929]
[1772735505492,0.001,2067.8,2067.0,4.88630929]
[1772735506192,0.001,2067.8,2067.1,6.09573312]
[1772735506599,0.001,2067.8,2067.2,4.88630929]
[1772735506802,6.02176476,2068.7,2067.2,4.88630929]
[1772735508337,6.02176476,2068.7,2067.4,4.88630929]
[1772735509024,1.2084829,2068.8,2067.4,4.88630929]
[1772735509220,1.20938311,2068.9,2067.4,4.88630929]
[1772735509820,0.001,2068.9,2067.4,4.88630929]
[1772735510021,0.001,2068.9,2067.5,5.10133028]
[1772735510236,0.001,2068.9,2067.7,4.95184529]
[1772735510437,0.001,2068.9,2067.9,4.88630929]
[1772735510621,0.001,2068.9,2068.0,0.60288989]
[1772735511030,0.001,2068.9,2067.9,0.065536]
[1772735511239,0.001,2068.9,2068.0,0.28667034]
[1772735511547,0.001,2068.9,2068.0,4.6064462]
[1772735512332,0.001,2068.9,2068.0,0.28667034]
[1772735512654,0.001,2068.9,2068.0,5.12202646]
[1772735512828,0.001,2068.9,2068.0,4.98484111]
[1772735513029,0.001,2068.9,2068.0,9.30461697]